fUSD/lending_fUSD_20260408
["ID","MTS","AMOUNT","RATE_DAILY","PERIOD"]
[420042009,1775629864086,-931.295422,0.000275,7]
[420042010,1775629864095,-516.55211,0.000275,7]
[420042011,1775629864105,-300.187423,0.000275,7]
[420042012,1775629864116,-151.0,0.000275,7]
[420042013,1775629864126,-300.187423,0.000275,7]
[420042014,1775629864135,-151.0,0.000275,7]
[420042015,1775629864144,-293.388266,0.000275,7]
[420042016,1775629864154,-153.180645,0.000275,7]
[420042017,1775629864163,-1436.269995,0.000275,7]
[420042018,1775629864174,-153.180645,0.000275,7]
[420042019,1775629864185,-151.0,0.000275,7]
[420042020,1775629864195,-153.180645,0.000275,7]
[420042021,1775629864206,-151.0,0.000275,7]
[420042022,1775629864216,-153.180645,0.000275,7]
[420042023,1775629864226,-219.393638,0.000275,7]
[420042024,1775629864235,-151.0,0.000275,2]
[420042025,1775629864245,-1436.269995,0.000275,7]
[420042026,1775629864255,-1436.269995,0.000275,7]
[420042027,1775629864266,-1436.269995,0.000275,7]
[420042028,1775629864277,-151.0,0.000275,7]
[420042029,1775629864289,-2000.0,0.000275,2]
[420042030,1775629864299,-2000.0,0.000275,2]
[420042031,1775629864309,-2000.0,0.000275,2]
[420042032,1775629864319,-151.0,0.000275,7]
[420042033,1775629864330,-275.383851,0.000275,7]
[420042034,1775629864341,-151.0,0.000275,7]
[420042035,1775629864351,-167.979442,0.000275,7]
[420042036,1775629864361,-275.383851,0.000275,7]
[420042037,1775629864371,-167.979442,0.000275,7]
[420042038,1775629864381,-275.383851,0.000275,7]
[420042039,1775629864391,-151.0,0.000275,7]
[420042040,1775629864401,-167.979442,0.000275,7]
[420042041,1775629864411,-275.383851,0.000275,7]
[420042042,1775629864421,-151.0,0.000275,7]
[420042043,1775629864431,-167.979442,0.000275,7]
[420042044,1775629864441,-151.0,0.000275,7]
[420042045,1775629864451,-151.0,0.000275,7]
[420042046,1775629864461,-500.303798,0.000275,7]
[420042047,1775629864471,-591.919533,0.000275,7]
[420042048,1775629864480,-151.0,0.000275,7]
[420042049,1775629864490,-500.303798,0.000275,7]
[420042050,1775629864500,-591.919533,0.000275,7]
[420042051,1775629864510,-151.0,0.000275,7]
[420042052,1775629864522,-500.303798,0.000275,7]
[420042053,1775629864533,-591.919533,0.000275,7]
[420042054,1775629864542,-500.303798,0.000275,7]
[420042055,1775629864553,-591.919533,0.000275,7]
[420042056,1775629864563,-151.0,0.000275,7]
[420042057,1775629864574,-486.879159,0.000275,7]
[420042058,1775629864584,-486.879159,0.000275,7]
[420042059,1775629864594,-486.879159,0.000275,7]
[420042060,1775629864605,-486.879159,0.000275,7]
[420042061,1775629864615,-151.0,0.000275,7]
[420042062,1775629864625,-222.664567,0.000275,7]
[420042063,1775629864634,-151.0,0.000275,7]
[420042064,1775629864645,-500.67081663,0.000275,2]
[420042065,1775629864655,-500.67081663,0.000275,2]
[420042066,1775629864665,-222.664567,0.000275,7]
[420042067,1775629864677,-189.331082,0.000275,7]
[420042068,1775629864686,-1997.607165,0.000275,7]
[420042069,1775629864697,-222.664567,0.000275,7]
[420042070,1775629864708,-1997.607165,0.000275,7]
[420042071,1775629864719,-222.664567,0.000275,7]
[420042072,1775629864730,-1997.607165,0.000275,7]
[420042073,1775629864741,-1997.607165,0.000275,7]
[420042074,1775629864751,-151.0,0.000275,7]
[420042075,1775629864761,-151.0,0.000275,7]
[420042076,1775629864770,-157.639504,0.000275,7]
[420042077,1775629864779,-235.282447,0.000275,7]
[420042078,1775629864789,-157.639504,0.000275,7]
[420042079,1775629864799,-174.887897,0.000275,7]
[420042080,1775629864808,-157.639504,0.000275,7]
[420042081,1775629864818,-174.887897,0.000275,7]
[420042082,1775629864828,-157.639504,0.000275,7]
[420042083,1775629864839,-174.887897,0.000275,7]
[420042084,1775629864848,-174.887897,0.000275,7]
[420042085,1775629864858,-151.0,0.000275,7]
[420042086,1775629864868,-200.428712,0.000275,7]
[420042087,1775629864877,-331.903835,0.000275,7]
[420042088,1775629864887,-151.0,0.000275,7]
[420042089,1775629864896,-151.0,0.000275,7]
[420042090,1775629864906,-200.428712,0.000275,7]
[420042091,1775629864915,-331.903835,0.000275,7]
[420042092,1775629864925,-151.0,0.000275,7]
[420042093,1775629864935,-151.0,0.000275,7]
[420042094,1775629864945,-216.401494,0.000275,7]
[420042095,1775629864954,-200.428712,0.000275,7]
[420042096,1775629864964,-331.903835,0.000275,7]
[420042097,1775629864973,-151.0,0.000275,7]
[420042098,1775629864983,-286.333865,0.000275,7]
[420042099,1775629864993,-216.401494,0.000275,7]
[420042100,1775629865003,-200.428712,0.000275,7]
[420042101,1775629865012,-331.903835,0.000275,7]
[420042102,1775629865021,-406.974794,0.000275,7]
[420042103,1775629865031,-216.401494,0.000275,7]
[420042104,1775629865040,-688.562471,0.000275,7]
[420042105,1775629865050,-406.974794,0.000275,7]
[420042106,1775629865059,-216.401494,0.000275,7]
[420042107,1775629865069,-688.562471,0.000275,7]
[420042108,1775629865078,-406.974794,0.000275,7]
[420042109,1775629865089,-151.0,0.000275,7]
[420042110,1775629865098,-688.562471,0.000275,7]
[420042111,1775629865108,-406.974794,0.000275,7]
[420042112,1775629865118,-688.562471,0.000275,7]
[420042113,1775629865127,-151.0,0.000275,7]
[420042114,1775629865137,-151.0,0.000275,7]
[420042115,1775629865147,-151.0,0.000275,7]
[420042116,1775629865156,-151.0,0.000275,7]
[420042117,1775629865165,-269.03214,0.000275,7]
[420042118,1775629865175,-158.486598,0.000275,7]
[420042119,1775629865184,-151.0,0.000275,7]
[420042120,1775629865195,-158.486598,0.000275,7]
[420042121,1775629865205,-151.0,0.000275,7]
[420042122,1775629865214,-158.486598,0.000275,7]
[420042123,1775629865224,-151.0,0.000275,7]
[420042124,1775629865234,-158.486598,0.000275,7]
[420042125,1775629865244,-1783.253125,0.000275,7]
[420042126,1775629865255,-1783.253125,0.000275,7]
[420042127,1775629865265,-252.211117,0.000275,7]
[420042128,1775629865275,-1783.253125,0.000275,7]
[420042129,1775629865285,-470.727614,0.000275,7]
[420042130,1775629865295,-252.211117,0.000275,7]
[420042131,1775629865305,-470.727614,0.000275,7]
[420042132,1775629865315,-1783.253125,0.000275,7]
[420042133,1775629865325,-252.211117,0.000275,7]
[420042134,1775629865335,-166.285857,0.000275,7]
[420042135,1775629865344,-151.0,0.000275,7]
[420042136,1775629865354,-470.727614,0.000275,7]
[420042137,1775629865363,-252.211117,0.000275,7]
[420042138,1775629865373,-166.285857,0.000275,7]
[420042139,1775629865383,-470.727614,0.000275,7]
[420042140,1775629865393,-166.285857,0.000275,7]
[420042141,1775629865402,-576.67248,0.000275,7]
[420042142,1775629865412,-244.821422,0.000275,7]
[420042143,1775629865421,-166.285857,0.000275,7]
[420042144,1775629865431,-576.67248,0.000275,7]
[420042145,1775629865440,-151.0,0.000275,7]
[420042146,1775629865451,-244.821422,0.000275,7]
[420042147,1775629865460,-576.67248,0.000275,7]
[420042148,1775629865470,-600.555697,0.000275,7]
[420042149,1775629865479,-382.373813,0.000275,7]
[420042150,1775629865489,-151.0,0.000275,7]
[420042151,1775629865499,-244.821422,0.000275,7]
[420042152,1775629865509,-354.618069,0.000275,7]
[420042153,1775629865519,-576.67248,0.000275,7]
[420042154,1775629865528,-600.555697,0.000275,7]
[420042155,1775629865539,-382.373813,0.000275,7]
[420042156,1775629865550,-244.821422,0.000275,7]
[420042157,1775629865560,-151.0,0.000275,7]
[420042158,1775629865571,-354.618069,0.000275,7]
[420042159,1775629865581,-600.555697,0.000275,7]
[420042160,1775629865591,-382.373813,0.000275,7]
[420042161,1775629865601,-511.805651,0.000275,7]
[420042162,1775629865610,-259.161588,0.000275,7]
[420042163,1775629865620,-151.0,0.000275,7]
[420042164,1775629865631,-151.0,0.000275,7]
[420042165,1775629865640,-354.618069,0.000275,7]
[420042166,1775629865651,-600.555697,0.000275,7]
[420042167,1775629865660,-382.373813,0.000275,7]
[420042168,1775629865670,-666.550951,0.000275,7]
[420042169,1775629865680,-354.618069,0.000275,7]
[420042170,1775629865690,-511.805651,0.000275,7]
[420042171,1775629865699,-666.550951,0.000275,7]
[420042172,1775629865709,-159.072668,0.000275,7]
[420042173,1775629865719,-151.0,0.000275,7]
[420042174,1775629865729,-151.0,0.000275,7]
[420042175,1775629865747,-151.771502,0.000275,7]
[420042176,1775629865757,-511.805651,0.000275,7]
[420042177,1775629865767,-952.790729,0.000275,7]
[420042178,1775629865776,-666.550951,0.000275,7]
[420042179,1775629865785,-159.072668,0.000275,7]
[420042180,1775629865795,-1286.374842,0.000275,2]
[420042181,1775629865804,-151.0,0.000275,7]
[420042182,1775629865814,-151.0,0.000275,7]
[420042183,1775629865823,-511.805651,0.000275,7]
[420042184,1775629865833,-952.790729,0.000275,7]
[420042185,1775629865843,-1298.010302,0.000275,7]
[420042186,1775629865853,-666.550951,0.000275,7]
[420042187,1775629865862,-1286.374842,0.000275,2]
[420042188,1775629865872,-159.072668,0.000275,7]
[420042189,1775629865881,-151.0,0.000275,7]
[420042190,1775629865891,-952.790729,0.000275,7]
[420042191,1775629865900,-1298.010302,0.000275,7]
[420042192,1775629865909,-1286.374842,0.000275,2]
[420042193,1775629865918,-159.072668,0.000275,7]
[420042194,1775629865928,-151.0,0.000275,7]
[420042195,1775629865937,-952.790729,0.000275,7]
[420042196,1775629865946,-1298.010302,0.000275,7]
[420042197,1775629865956,-151.0,0.000275,7]
[420042198,1775629865965,-1286.374842,0.000275,2]
[420042199,1775629865975,-151.0,0.000275,7]
[420042200,1775629865984,-1298.010302,0.000275,7]
[420042201,1775629865994,-151.0,0.000275,7]
[420042202,1775629866003,-162.42237,0.000275,7]
[420042203,1775629866013,-151.0,0.000275,7]
[420042204,1775629866022,-698.076002,0.000275,7]
[420042205,1775629866032,-162.42237,0.000275,7]
[420042206,1775629866041,-698.076002,0.000275,7]
[420042207,1775629866051,-162.42237,0.000275,7]
[420042208,1775629866060,-698.076002,0.000275,7]
[420042209,1775629866069,-151.0,0.000275,7]
[420042210,1775629866079,-162.42237,0.000275,7]
[420042211,1775629866088,-698.076002,0.000275,7]
[420042212,1775629866098,-151.0,0.000275,7]
[420042213,1775629866107,-151.0,0.000275,7]
[420042214,1775629866116,-151.0,0.000275,7]
[420042215,1775629866126,-306.332244,0.000275,7]
[420042216,1775629866135,-151.0,0.000275,7]
[420042217,1775629866145,-151.0,0.000275,7]
[420042218,1775629866154,-372.43938,0.000275,7]
[420042219,1775629866164,-306.332244,0.000275,7]
[420042220,1775629866174,-151.0,0.000275,7]
[420042221,1775629866183,-306.332244,0.000275,7]
[420042222,1775629866193,-372.43938,0.000275,7]
[420042223,1775629866202,-151.0,0.000275,7]
[420042224,1775629866212,-151.0,0.000275,7]
[420042225,1775629866221,-306.332244,0.000275,7]
[420042226,1775629866231,-372.43938,0.000275,7]
[420042227,1775629866240,-372.43938,0.000275,7]
[420042228,1775629866249,-151.0,0.000275,7]
[420042229,1775629866260,-151.0,0.000275,7]
[420042230,1775629866270,-151.0,0.000275,7]
[420042231,1775629866279,-151.765139,0.000275,7]
[420042232,1775629866289,-151.0,0.000275,7]
[420042233,1775629866299,-151.0,0.000275,7]
[420042234,1775629866308,-69940.03157926,0.000275,2]
[420042235,1775629866318,-3068.460662,0.000275,7]
[420042236,1775629866327,-182.805074,0.000275,7]
[420042237,1775629866337,-151.0,0.000275,7]
[420042238,1775629866346,-319.192583,0.000275,7]
[420042239,1775629866357,-3068.460662,0.000275,7]
[420042240,1775629866367,-151.0,0.000275,7]
[420042241,1775629866377,-319.192583,0.000275,7]
[420042242,1775629866387,-3068.460662,0.000275,7]
[420042243,1775629866397,-319.192583,0.000275,7]
[420042244,1775629866407,-3068.460662,0.000275,7]
[420042245,1775629866416,-151.0,0.000275,7]
[420042246,1775629866425,-319.192583,0.000275,7]
[420042247,1775629866435,-200.0,0.00027563,2]
[420042248,1775629866445,-200.0,0.00027563,2]
[420042249,1775629866455,-2234.77,0.000276,7]
[420042250,1775629866465,-2383.51,0.000276,7]
[420042251,1775629866475,-1753.78,0.000276,7]
[420042252,1775629866483,-4257.28,0.000276,7]
[420042253,1775629866492,-500.0,0.00027644,2]
[420042254,1775629866503,-916.91,0.00027671,120]
[420042255,1775629866513,-651.16232498,0.00027671,30]
[420042256,1775629866522,-68119.97,0.000277,7]
[420042257,1775629866531,-2200.0,0.00027774,21]
[420042258,1775629866541,-1100.0,0.00027774,21]
[420042259,1775629866551,-39000.0,0.000278,2]
[420042260,1775629866561,-2234.77,0.000278,7]
[420042261,1775629866570,-2383.51,0.000278,7]
[420042262,1775629866580,-1753.78,0.000278,7]
[420042263,1775629866589,-593.38,0.00027801,120]
[420042264,1775629866599,-165.0,0.0002782,120]
[420042265,1775629866609,-200.0,0.00027839,2]
[420042266,1775629866619,-200.0,0.00027839,2]
[420042267,1775629866629,-368.0,0.00027878,120]
[420042268,1775629866639,-221.0,0.00027878,120]
[420042269,1775629866649,-166.0,0.00027878,120]
[420042270,1775629866659,-166.0,0.00027878,120]
[420042271,1775629866669,-272380.91558226,0.000279,33]
[420042272,1775629866679,-2818.0,0.000279,10]
[420042273,1775629866688,-854.33941891,0.000279,2]
[420042274,1775629866697,-3404.31588381,0.000279,2]
[420042275,1775629866706,-350.0,0.00027907,6]
[420042276,1775629866716,-1264.0,0.00027908,2]
[420042277,1775629866728,-926.0,0.00027908,2]
[420042278,1775629866738,-1217.0,0.00027908,2]
[420042279,1775629866748,-350.0,0.00027908,4]
[420042280,1775629866758,-916.91,0.00027945,120]
[420042281,1775629866767,-542.63527082,0.00027945,30]
[420042282,1775629866777,-250.0,0.00027945,5]
[420042283,1775629866997,-210.0,0.00027988,2]
[420042284,1775629867007,-151.0,0.00027997,7]
[420042285,1775629867016,-500.0,0.00028,2]
[420042286,1775629867026,-500.0,0.00028,2]
[420042287,1775629867036,-51299.00802501,0.00028,2]
[420042288,1775629867045,-160.0,0.00028,2]
[420042289,1775629867055,-703.9781575,0.00028,14]
[420042290,1775629867064,-151.0,0.00028,2]
[420042291,1775629867073,-5232610.86716426,0.00028,2]
[420042292,1775629867095,-669.878833,0.00028,2]
[420042293,1775629867106,-280.17490809,0.00028,2]
[420042294,1775629867117,-689.72524371,0.00028,2]
[420042295,1775629867360,-259.497676,0.00011776,2]
[420042296,1775629867370,-158.66,0.00011998,2]
[420042297,1775629867379,-627.065,0.0001838,2]
[420042298,1775629867390,-622.0,0.0002138,2]
[420042299,1775629867400,-151.0,0.000249,2]
[420042300,1775629867410,-196.402077,0.000249,2]
[420042301,1775629867420,-1000.0,0.00026675,120]
[420042302,1775629867430,-1000.0,0.00026675,120]
[420042303,1775629867439,-380.83261077,0.00026675,120]
[420042304,1775629867473,-158.66,0.00014665,2]
[420042305,1775629867483,-218.99200136,0.0002438,2]
[420042306,1775629867596,-350.572788,0.00011776,2]
[420042307,1775629867606,-248.94845992,0.00013491,2]
[420042308,1775629867616,-158.66,0.00015631,2]
[420042309,1775629867625,-211.53350337,0.00016681,2]
[420042310,1775629867635,-403.00799864,0.0002438,2]
[420042311,1775629867644,-619.16738923,0.00026675,120]
[420042312,1775629867654,-1000.0,0.00026675,120]
[420042313,1775629867663,-1000.0,0.00026675,120]
[420042314,1775629867674,-1000.0,0.00026675,120]
[420042315,1775629867684,-1000.0,0.00026675,120]
[420042316,1775629867693,-1000.0,0.00026675,120]
[420042317,1775629867703,-1000.0,0.00026675,120]
[420042318,1775629867712,-370.35384896,0.00026675,120]
[420042319,1775629867724,-629.64615104,0.00026675,120]
[420042320,1775629867733,-1000.0,0.00026675,120]
[420042321,1775629867742,-456.0089557,0.00026675,120]
[420042322,1775629867855,-249.19740838,0.0001404,2]
[420042323,1775629867865,-388.36259161,0.00026675,120]
[420042324,1775629867877,-155.62845269,0.00026675,120]
[420042325,1775629867887,-1000.0,0.00026675,120]
[420042326,1775629867896,-1000.0,0.00026675,120]
[420042327,1775629867906,-1000.0,0.00026675,120]
[420042328,1775629867918,-1000.0,0.00026675,120]
[420042329,1775629867934,-737.3203095,0.00026675,120]
[420042330,1775629869055,-262.6796905,0.00026675,120]
[420042331,1775629869068,-424.01955215,0.00026675,120]
[420042332,1775629869670,196.45084673,0.00010198,2]
[420042333,1775629871730,196.45084672,0.00010199,2]
[420042335,1775629980209,602.61275633,0.000102,2]
[420042337,1775630004646,233.43038836,0.000102,2]
[420042338,1775630090955,716.40186308,0.00010287,2]
[420042339,1775630127369,853.41241684,0.000102,2]
[420042340,1775630138817,-299.0,0.00010295,2]
[420042341,1775630138843,-1200.0,0.00010295,2]
[420042342,1775630138869,-300.0,0.00010295,2]
[420042343,1775630138894,-150.0,0.00010295,2]
[420042344,1775630138927,155.62025892,0.000102,2]
[420042345,1775630148481,299.0,0.00010295,2]
[420042346,1775630157104,197.72959783,0.00010195,2]
[420042347,1775630161540,150.0,0.00010295,2]
[420042348,1775630161884,300.0,0.00010294,2]
[420042349,1775630184236,500.0,0.00010196,2]
[420042350,1775630204688,610.24244213,0.00010197,2]
[420042351,1775630210501,299.0,0.00010295,2]
[420042352,1775630240100,2269.54392255,0.000102,2]
[420042353,1775630240941,2500.0,0.00010197,2]
[420042355,1775630243628,151.0,0.00010292,2]
[420042356,1775630244239,151.0,0.00010292,2]
[420042357,1775630244843,151.0,0.00010292,2]
[420042358,1775630245440,151.0,0.00010292,2]
[420042359,1775630246066,151.0,0.00010292,2]
[420042360,1775630246723,151.0,0.00010292,2]
[420042361,1775630247367,151.0,0.00010292,2]
[420042362,1775630249422,151.0,0.00010292,2]
[420042363,1775630249527,151.0,0.00010292,2]
[420042364,1775630249618,1199.20597015,0.00010292,2]
[420042365,1775630249679,151.0,0.00010292,2]
[420042366,1775630249806,151.0,0.00010292,2]
[420042367,1775630250415,151.0,0.00010292,2]
[420042368,1775630251010,151.0,0.00010292,2]
[420042369,1775630251636,151.0,0.00010292,2]
[420042370,1775630252726,151.0,0.00010292,2]
[420042371,1775630252899,151.0,0.00010292,2]
[420042372,1775630253491,151.0,0.00010292,2]
[420042373,1775630254109,151.0,0.00010292,2]
[420042374,1775630254724,151.0,0.00010292,2]
[420042375,1775630255374,151.0,0.00010292,2]
[420042376,1775630265419,568.94161124,0.000102,2]
[420042377,1775630272515,299.0,0.00010295,2]
[420042378,1775630274094,155.6202589,0.000102,2]
[420042379,1775630313323,4908.24215971,0.0001028,2]
[420042380,1775630313347,10000.01,0.0001028,2]
[420042381,1775630313373,10000.01,0.0001028,2]
[420042382,1775630313402,296.3295076,0.0001028,2]
[420042383,1775630313433,304.27962211,0.0001028,2]
[420042384,1775630313462,450.39702815,0.0001028,2]
[420042385,1775630413263,500.0,9.458e-05,2]
[420042386,1775630427775,-290.0,9.716e-05,2]
[420042387,1775630427798,-250.0,9.716e-05,2]
[420042388,1775630427821,-460.0,9.716e-05,2]
[420042389,1775630430174,-1000.0,9.716e-05,2]
[420042390,1775630430523,-1000.0,9.716e-05,2]
[420042391,1775630430864,-1000.0,9.716e-05,2]
[420042392,1775630432566,-1000.0,9.716e-05,2]
[420042393,1775630432614,-540.0,9.716e-05,2]
[420042394,1775630432636,-460.0,9.716e-05,2]
[420042395,1775630432784,-1000.0,9.716e-05,2]
[420042396,1775630433026,-1000.0,9.716e-05,2]
[420042397,1775630435101,-483.39,9.716e-05,2]
[420042398,1775630435123,-500.0,9.834e-05,2]
[420042399,1775630435144,-16.61,9.932e-05,2]
[420042400,1775630435368,-1000.0,9.932e-05,2]
[420042401,1775630435734,-1000.0,9.932e-05,2]
[420042402,1775630436062,-1000.0,9.932e-05,2]
[420042403,1775630436490,-1000.0,9.932e-05,2]
[420042404,1775630436936,-983.39,9.932e-05,2]
[420042405,1775630436959,-16.61,9.932e-05,2]
[420042406,1775630437268,-1000.0,9.932e-05,2]
[420042407,1775630437700,-1000.0,9.932e-05,2]
[420042408,1775630438490,-1000.0,9.932e-05,2]
[420042409,1775630438566,-1000.0,9.932e-05,2]
[420042410,1775630438823,-983.39,9.932e-05,2]
[420042411,1775630438847,-16.61,9.932e-05,2]
[420042412,1775630439206,-1000.0,9.932e-05,2]
[420042413,1775630439530,-1000.0,9.932e-05,2]
[420042414,1775630439960,-1000.0,9.932e-05,2]
[420042415,1775630440438,-1000.0,9.932e-05,2]
[420042416,1775630440887,-332.72727226,9.932e-05,2]
[420042417,1775630468398,-1000.0,0.00010196,2]
[420042418,1775630470187,-200.0,0.00010196,2]
[420042419,1775630470210,-300.0,0.00010196,2]
[420042420,1775630470233,-297.0,0.00010196,2]
[420042421,1775630470256,-203.0,0.00010196,2]
[420042422,1775630470537,-97.0,0.00010196,2]
[420042423,1775630470560,-903.0,0.00010196,2]
[420042424,1775630470876,-1000.0,0.00010196,2]
[420042425,1775630471307,-1000.0,0.00010196,2]
[420042426,1775630471747,-1000.0,0.00010196,2]
[420042427,1775630472174,-1000.0,0.00010196,2]
[420042428,1775630472675,-97.0,0.00010196,2]
[420042429,1775630472700,-250.0,0.00010196,2]
[420042430,1775630472723,-653.0,0.00010197,2]
[420042431,1775630472982,-1000.0,0.00010197,2]
[420042432,1775630473410,-1000.0,0.00010197,2]
[420042433,1775630473889,-524.6322,0.00010197,2]
[420042434,1775630473914,-475.3678,0.00010197,2]
[420042435,1775630474214,-1000.0,0.00010197,2]
[420042436,1775630474552,-1000.0,0.00010197,2]
[420042437,1775630474995,-1000.0,0.00010197,2]
[420042438,1775630475424,-1000.0,0.00010197,2]
[420042439,1775630475828,-1000.0,0.00010197,2]
[420042440,1775630476177,-1000.0,0.00010197,2]
[420042441,1775630476479,-1000.0,0.00010197,2]
[420042442,1775630478172,-1000.0,0.00010197,2]
[420042443,1775630478243,-1000.0,0.00010197,2]
[420042444,1775630479870,-950.6536,0.00010197,2]
[420042445,1775630479892,-49.3464,0.00010197,2]
[420042446,1775630480694,-1000.0,0.00010197,2]
[420042447,1775630481635,-1000.0,0.00010197,2]
[420042448,1775630482594,-450.6536,0.00010197,2]
[420042449,1775630482616,-549.3464,0.00010197,2]
[420042450,1775630484292,-1000.0,0.00010197,2]
[420042451,1775630485815,-1000.0,0.00010197,2]
[420042452,1775630493536,-200.0,0.00010197,2]
[420042453,1775630495402,-200.0,0.00010197,2]
[420042456,1775630621871,10000.01,9.667e-05,2]
[420042457,1775630621893,584.848421,9.667e-05,2]
[420042458,1775630677091,253.99,9.357e-05,2]
[420042459,1775630766258,200.0,0.000105,30]
[420042460,1775630878702,1600.0,9.28e-05,2]
[420042461,1775630886631,200.0,0.000105,30]
[420042462,1775630925709,3585.38,4.67e-05,2]
[420042463,1775630926116,3585.38,4.916e-05,2]
[420042464,1775630926310,1229.25,5.162e-05,2]
[420042465,1775630926334,2356.13,5.162e-05,2]
[420042466,1775630926500,3585.38,5.407e-05,2]
[420042467,1775630926899,3585.38,5.653e-05,2]
[420042468,1775630927109,473.12,5.899e-05,2]
[420042469,1775630927135,3112.26,5.899e-05,2]
[420042470,1775630927297,548.911579,6.145e-05,2]
[420042471,1775630927325,3036.468421,6.145e-05,2]
[420042472,1775630927496,3585.38,6.39e-05,2]
[420042473,1775630927684,3585.38,6.636e-05,2]
[420042474,1775630927717,200.0,8.1e-05,2]
[420042475,1775630927935,3585.38,6.882e-05,2]
[420042476,1775630928132,3585.38,7.128e-05,2]
[420042477,1775630928410,3585.38,7.374e-05,2]
[420042478,1775630928627,3585.38,7.619e-05,2]
[420042479,1775630928812,3585.38,7.865e-05,2]
[420042480,1775630929014,3585.38,8.111e-05,2]
[420042481,1775630929203,2829.25,8.357e-05,2]
[420042482,1775630929228,756.13,8.357e-05,2]
[420042483,1775630931404,-1414.63,8.603e-05,2]
[420042484,1775630934041,-2170.75,8.603e-05,2]
[420042485,1775630936898,-1414.63,8.848e-05,2]
[420042486,1775630939926,-2170.75,8.848e-05,2]
[420042487,1775630939986,-658.51,9.094e-05,2]
[420042488,1775630943933,-2926.87,9.094e-05,2]
[420042489,1775630954839,-1414.63,9.34e-05,2]
[420042490,1775630954864,-2170.75,9.34e-05,2]
[420042491,1775630958443,-284.0,9.34e-05,2]
[420042492,1775630975578,-1200.0,9.715e-05,2]
[420042493,1775630987275,7600.01,9.34e-05,2]
[420042494,1775630987298,10000.01,9.34e-05,2]
[420042495,1775630987321,10000.01,9.34e-05,2]
[420042496,1775630987344,10000.01,9.34e-05,2]
[420042497,1775630987367,10000.01,9.34e-05,2]
[420042498,1775630987389,2571.73,9.34e-05,2]
[420042499,1775631020433,-290.0,9.716e-05,2]
[420042500,1775631020457,-710.0,9.716e-05,2]
[420042501,1775631021849,-1000.0,9.716e-05,2]
[420042502,1775631022181,-1000.0,9.716e-05,2]
[420042503,1775631022501,-1000.0,9.716e-05,2]
[420042504,1775631022813,-1000.0,9.716e-05,2]
[420042505,1775631023222,-290.0,9.716e-05,2]
[420042506,1775631023245,-211.1,9.716e-05,2]
[420042507,1775631023270,-300.0,9.909e-05,2]
[420042508,1775631023293,-198.9,9.909e-05,2]
[420042509,1775631023688,-101.1,9.909e-05,2]
[420042510,1775631023713,-898.9,9.909e-05,2]
[420042511,1775631024481,-301.1,9.909e-05,2]
[420042512,1775631024506,-698.9,9.91e-05,2]
[420042513,1775631024586,-1000.0,9.91e-05,2]